fUSD/lending_fUSD_20250526
["ID","MTS","AMOUNT","RATE_DAILY","PERIOD"]
[362402773,1748253079020,-10000.0,0.00035,14]
[362402774,1748253079029,-1000.0,0.00035,10]
[362402775,1748253079039,-1574.0,0.00035,120]
[362402776,1748253079052,-1200.03193678,0.00035,2]
[362402777,1748253079061,-206104.21938432,0.00035,2]
[362402778,1748253079071,-228.60485746,0.00035,2]
[362402779,1748253079080,-2000.0,0.00035,60]
[362402780,1748253079090,-526.21,0.00035,14]
[362402781,1748253079099,-242.7,0.00035,2]
[362402782,1748253079109,-750.0,0.00035,2]
[362402783,1748253079119,-9151.57031134,0.00035,2]
[362402784,1748253079129,-20000.0,0.00035,5]
[362402785,1748253079141,-1000.0,0.00035,30]
[362402786,1748253079152,-10113.90626778,0.00035,3]
[362402787,1748253079162,-500.0,0.00035007,7]
[362402788,1748253079172,-12649.0,0.00035017,3]
[362402789,1748253079182,-2000.0,0.00035057,7]
[362402790,1748253079192,-452.35,0.00035068,2]
[362402791,1748253079202,-500.0,0.00035068,7]
[362402792,1748253079211,-1464.5,0.00035068,2]
[362402793,1748253079221,-500.0,0.00035084,7]
[362402794,1748253079231,-227.62056414,0.000351,5]
[362402795,1748253079241,-159.0,0.000351,120]
[362402796,1748253079250,-168.0,0.000351,120]
[362402797,1748253079261,-10028.76645838,0.00035115,2]
[362402798,1748253079271,-161.052618,0.00035198,120]
[362402799,1748253079281,-982.13367726,0.00035206,7]
[362402800,1748253079291,-2000.0,0.00035246,7]
[362402801,1748253079301,-1000.0,0.00035253,7]
[362402802,1748253079311,-30165.79,0.000353,14]
[362402803,1748253079321,-150.0,0.00035328,2]
[362402804,1748253079331,-150.43,0.00035342,2]
[362402805,1748253079340,-303.77,0.00035342,2]
[362402806,1748253079350,-300.15,0.00035342,2]
[362402807,1748253079360,-1000.0,0.0003536,7]
[362402808,1748253079370,-2000.0,0.00035371,7]
[362402809,1748253079380,-2000.0,0.00035442,7]
[362402810,1748253079391,-500.0,0.00035443,7]
[362402811,1748253079400,-157.052618,0.00035498,120]
[362402812,1748253079410,-160.0,0.000355,13]
[362402813,1748253079420,-160.0,0.000355,13]
[362402814,1748253079430,-1000.0,0.00035504,7]
[362402815,1748253079440,-355.804898,0.00035535,120]
[362402816,1748253079450,-500.0,0.00035545,7]
[362402817,1748253079460,-500.0,0.00035573,120]
[362402818,1748253079470,-386.0,0.000356,2]
[362402819,1748253079480,-909.0675,0.00035616,4]
[362402820,1748253079490,-692.11264471,0.00035616,5]
[362402821,1748253079500,-218.5492422,0.00035616,2]
[362402822,1748253079510,-2000.0,0.00035616,120]
[362402823,1748253079519,-2000.0,0.00035616,120]
[362402824,1748253079529,-2000.0,0.00035616,120]
[362402825,1748253079538,-2000.0,0.00035616,120]
[362402826,1748253079548,-2000.0,0.00035616,120]
[362402827,1748253079557,-2000.0,0.00035616,120]
[362402828,1748253079566,-2000.0,0.00035616,120]
[362402829,1748253079576,-2000.0,0.00035616,120]
[362402830,1748253079586,-2000.0,0.00035616,120]
[362402831,1748253079595,-2000.0,0.00035616,120]
[362402832,1748253079605,-2000.0,0.00035616,120]
[362402833,1748253079614,-2000.0,0.00035616,120]
[362402834,1748253079623,-2000.0,0.00035616,120]
[362402835,1748253079634,-2000.0,0.00035616,120]
[362402836,1748253079644,-2000.0,0.00035616,120]
[362402837,1748253079654,-1425.320244,0.00035616,120]
[362402838,1748253079663,-526.21,0.000357,14]
[362402839,1748253079673,-152.0,0.00035745,6]
[362402840,1748253079682,-7900.0,0.0003578,7]
[362402841,1748253079692,-500.0,0.00035796,7]
[362402842,1748253079701,-157.052618,0.00035798,120]
[362402843,1748253079711,-339.86504,0.000358,120]
[362402844,1748253079720,-500.0,0.00035828,7]
[362402845,1748253079729,-500.0,0.00035851,7]
[362402846,1748253079738,-475.47033,0.00035888,30]
[362402847,1748253079747,-6762.35950682,0.000359,7]
[362402848,1748253079756,-13717.29263101,0.0003591,2]
[362402849,1748253079766,-500.0,0.00035931,7]
[362402850,1748253079775,-2000.0,0.00035999,2]
[362402851,1748253079784,-507.86,0.00035999,15]
[362402852,1748253079794,-30165.79,0.00036,14]
[362402853,1748253079804,-647.86022022,0.00036,60]
[362402854,1748253079814,-227825.25655416,0.00036,2]
[362402855,1748253079826,-214.0,0.00036,2]
[362402856,1748253079837,-7900.0,0.00036001,7]
[362402857,1748253079847,-164.37936986,0.00036013,7]
[362402858,1748253079858,-564.30138409,0.00036019,7]
[362402859,1748253079869,-1000.0,0.00036022,7]
[362402860,1748253079880,-150.0,0.00036049,2]
[362402861,1748253079893,-207.0,0.00036054,27]
[362402862,1748253079903,-475.47033,0.00036088,30]
[362402863,1748253079913,-1800.0,0.00036129,7]
[362402864,1748253079951,-500.0,0.0003616,7]
[362402865,1748253079959,-157.052618,0.00036198,120]
[362402866,1748253079968,-475.47033,0.00036288,30]
[362402867,1748253079978,-800.0,0.00036298,2]
[362402868,1748253079986,-500.0,0.00036318,7]
[362402869,1748253079995,-526.21,0.000364,14]
[362402870,1748253080003,-500.0,0.00036414,7]
[362402871,1748253080011,-212.69507443,0.00036422,7]
[362402872,1748253080019,-452.35,0.00036438,2]
[362402873,1748253080027,-1000.0,0.0003644,7]
[362402874,1748253080035,-827.34658813,0.00036486,7]
[362402875,1748253080045,-475.47033,0.00036488,30]
[362402876,1748253080055,-161.052618,0.00036498,120]
[362402877,1748253080064,-160.0,0.000365,17]
[362402878,1748253080072,-160.0,0.000365,17]
[362402879,1748253080080,-1000.0,0.00036534,7]
[362402880,1748253080089,-500.0,0.00036574,7]
[362402881,1748253080097,-500.0,0.00036589,7]
[362402882,1748253080106,-475.47033,0.00036688,30]
[362402883,1748253080114,-339.86504,0.000367,120]
[362402884,1748253080123,-473.0,0.00036735,30]
[362402885,1748253080131,-996.24592193,0.00036763,7]
[362402886,1748253080142,-870.52457724,0.00036766,7]
[362402887,1748253080151,-150.0,0.0003677,2]
[362402888,1748253080160,-7900.0,0.00036786,7]
[362402889,1748253080169,-500.0,0.00036792,7]
[362402890,1748253080177,-157.052618,0.00036798,120]
[362402891,1748253080186,-500.0,0.00036882,7]
[362402892,1748253080194,-1800.0,0.00036886,7]
[362402893,1748253080203,-1584.9011,0.00036888,7]
[362402894,1748253080212,-475.47033,0.00036888,30]
[362402895,1748253080221,-2000.0,0.000369,2]
[362402896,1748253080231,-475.10576269,0.00036952,7]
[362402897,1748253080240,-1212.09,0.00036986,5]
[362402898,1748253080249,-150.0,0.00036986,2]
[362402899,1748253080258,-150.0,0.00036986,2]
[362402900,1748253080266,-150.0,0.00036986,2]
[362402901,1748253080274,-150.0,0.00036986,2]
[362402902,1748253080283,-150.0,0.00036986,2]
[362402903,1748253080291,-150.83,0.00036986,2]
[362402904,1748253080300,-150.0,0.00036986,2]
[362402905,1748253080309,-838.61,0.00036987,2]
[362402906,1748253080318,-500.0,0.00036987,7]
[362402907,1748253080327,-10000.0,0.00037,14]
[362402908,1748253080336,-1574.0,0.00037,120]
[362402909,1748253080345,-800.0,0.00037,2]
[362402910,1748253080354,-473.0,0.00037044,30]
[362402911,1748253080364,-475.47033,0.00037088,30]
[362402912,1748253080373,-526.17,0.000371,14]
[362402913,1748253080382,-2000.0,0.00037108,7]
[362402914,1748253080391,-500.0,0.00037143,7]
[362402915,1748253080400,-172.46406958,0.0003715,120]
[362402916,1748253080409,-157.052618,0.00037198,120]
[362402917,1748253080418,-1000.0,0.00037198,7]
[362402918,1748253080427,-347.73155204,0.000372,120]
[362402919,1748253080553,-347.73155201,0.000372,120]
[362402920,1748253080576,-347.73155201,0.000372,120]
[362402921,1748253080584,-347.73155201,0.000372,120]
[362402922,1748253080591,-347.73155201,0.000372,120]
[362402923,1748253080598,-500.0,0.00037232,7]
[362402924,1748253080605,-520.3066783,0.00037253,7]
[362402925,1748253080614,-1800.0,0.00037255,7]
[362402926,1748253080620,-7900.0,0.00037256,7]
[362402927,1748253080629,-7900.0,0.00037265,7]
[362402928,1748253080636,-2000.0,0.00037282,7]
[362402929,1748253080643,-475.47033,0.00037288,30]
[362402930,1748253080649,-7900.0,0.00037307,7]
[362402931,1748253080655,-500.0,0.0003735,7]
[362402932,1748253080663,-1000.0,0.0003736,7]
[362402933,1748253080669,-1500.0,0.00037379,5]
[362402934,1748253080676,-500.0,0.00037435,7]
[362402935,1748253080682,-1800.0,0.00037444,7]
[362402936,1748253080689,-475.47033,0.00037488,30]
[362402937,1748253080695,-150.0,0.00037491,2]
[362402938,1748253080702,-161.052618,0.00037498,120]
[362402939,1748253080708,-160.0,0.000375,22]
[362402940,1748253080715,-160.0,0.000375,22]
[362402941,1748253080722,-150.0,0.00037518,2]
[362402942,1748253080728,-150.0,0.00037552,2]
[362402943,1748253080735,-1800.0,0.00037557,7]
[362402944,1748253080741,-7900.0,0.00037567,7]
[362402945,1748253080752,-4217.89067586,0.0003759,2]
[362402946,1748253080759,-339.86504,0.000376,120]
[362402947,1748253080767,-392.457424,0.00037662,12]
[362402948,1748253080773,-150.0,0.00037665,2]
[362402949,1748253080781,-500.0,0.00037671,7]
[362402950,1748253080788,-233.04,0.00037671,120]
[362402951,1748253080794,-475.47033,0.00037688,30]
[362402952,1748253080801,-2000.0,0.00037701,7]
[362402953,1748253080810,-500.0,0.00037749,7]
[362402954,1748253080819,-150.0,0.00037752,2]
[362402955,1748253080828,-1333.0,0.00037753,120]
[362402956,1748253080838,-157.052618,0.00037798,120]
[362402957,1748253080847,-452.35,0.00037807,2]
[362402958,1748253080856,-588.0,0.00037808,2]
[362402959,1748253080866,-588.0,0.00037808,2]
[362402960,1748253080875,-588.0,0.00037808,2]
[362402961,1748253080884,-588.0,0.00037808,2]
[362402962,1748253080894,-588.0,0.00037808,2]
[362402963,1748253080903,-588.0,0.00037808,2]
[362402964,1748253080912,-588.0,0.00037808,2]
[362402965,1748253080921,-588.0,0.00037808,2]
[362402966,1748253080930,-588.0,0.00037808,2]
[362402967,1748253080940,-274.72373503,0.00037808,2]
[362402968,1748253080949,-150.0,0.00037808,2]
[362402969,1748253080959,-150.0,0.00037808,2]
[362402970,1748253080968,-150.0,0.00037862,2]
[362402971,1748253080978,-150.0,0.00037871,2]
[362402972,1748253080987,-500.0,0.00037873,7]
[362402973,1748253080996,-475.47033,0.00037888,30]
[362402974,1748253081005,-150.0,0.00037911,2]
[362402975,1748253081015,-150.0,0.00037947,2]
[362402976,1748253081024,-2000.0,0.00037998,7]
[362402977,1748253081034,-500.0,0.00038,2]
[362402978,1748253081046,-1000.0,0.00038016,7]
[362402979,1748253081056,-150.0,0.00038049,2]
[362402980,1748253081065,-150.0,0.0003808,2]
[362402981,1748253081075,-475.47033,0.00038088,30]
[362402982,1748253081085,-500.0,0.00038148,7]
[362402983,1748253081094,-150.0,0.00038155,2]
[362402984,1748253081103,-161.052618,0.00038198,120]
[362402985,1748253081113,-150.0,0.00038212,2]
[362402986,1748253081123,-607.69899588,0.00038233,7]
[362402987,1748253081133,-475.47033,0.00038288,30]
[362402988,1748253081142,-150.0,0.0003831,2]
[362402989,1748253081151,-2000.0,0.00038335,7]
[362402990,1748253081161,-1515.1125,0.00038356,6]
[362402991,1748253081170,-200.36,0.00038356,4]
[362402992,1748253081178,-5677.0,0.00038377,5]
[362402993,1748253081188,-524.79171231,0.000384,2]
[362402994,1748253081197,-500.0,0.00038415,7]
[362402995,1748253081208,-2000.0,0.00038482,7]
[362402996,1748253081218,-475.47033,0.00038488,30]
[362402997,1748253081227,-157.052618,0.00038498,120]
[362402998,1748253081237,-160.0,0.000385,26]
[362402999,1748253081247,-160.0,0.000385,26]
[362403000,1748253081256,-339.86504,0.000385,120]
[362403001,1748253081266,-150.0,0.00038508,2]
[362403002,1748253081276,-152.0,0.0003854,7]
[362403003,1748253081285,-1800.0,0.00038613,7]
[362403004,1748253081295,-795.30615581,0.00038632,7]
[362403005,1748253081305,-150.0,0.00038687,2]
[362403006,1748253081314,-475.47033,0.00038688,30]
[362403007,1748253081324,-1800.0,0.00038747,7]
[362403008,1748253081334,-150.0,0.00038749,2]
[362403009,1748253081343,-150.0,0.00038784,2]
[362403010,1748253081353,-150.0,0.00038785,2]
[362403011,1748253081362,-157.052618,0.00038798,120]
[362403012,1748253081372,-1800.0,0.0003882,7]
[362403013,1748253081382,-150.0,0.00038869,2]
[362403014,1748253081394,-150.0,0.00038882,2]
[362403015,1748253081404,-500.0,0.00038894,7]
[362403016,1748253081413,-473.0,0.00038896,90]
[362403017,1748253081423,-501.16211184,0.00038914,2]
[362403018,1748253081433,-150.0,0.00038933,2]
[362403019,1748253081443,-597.2150737,0.00039,120]
[362403020,1748253081452,-69399.64345463,0.00039,10]
[362403021,1748253081462,-150.0,0.00039,10]
[362403022,1748253081472,-931.08939119,0.00039,2]
[362403023,1748253081480,-1574.0,0.00039,120]
[362403024,1748253081489,-151.61325957,0.00039,120]
[362403025,1748253081498,-300.0,0.00039,2]
[362403026,1748253081506,-300.0,0.00039,2]
[362403027,1748253081515,-300.0,0.00039,2]
[362403028,1748253081524,-300.0,0.00039,2]
[362403029,1748253081534,-313.17217586,0.00039,2]
[362403030,1748253081543,-10000.0,0.00039,30]
[362403031,1748253081552,-850.0,0.00039,2]
[362403032,1748253081561,-214.0,0.00039,2]
[362403033,1748253081571,-5000.0,0.00039008,2]
[362403034,1748253081579,-150.0,0.00039008,2]
[362403035,1748253081588,-6126.55,0.00039012,2]
[362403036,1748253081597,-1432.0,0.00039017,2]
[362403037,1748253081606,-7900.0,0.00039022,7]
[362403038,1748253081615,-150.0,0.00039023,2]
[362403039,1748253081623,-5000.0,0.0003904,2]
[362403040,1748253081631,-1000.0,0.00039057,7]
[362403041,1748253081642,-1164.84,0.00039081,2]
[362403042,1748253081649,-2500.0,0.00039082,2]
[362403043,1748253081657,-475.47033,0.00039088,30]
[362403044,1748253081665,-1471.26,0.000391,14]
[362403045,1748253081673,-200.3691754,0.000391,2]
[362403046,1748253081681,-500.0,0.00039115,7]
[362403047,1748253081688,-5000.0,0.00039118,2]
[362403048,1748253081695,-5000.0,0.00039126,2]
[362403049,1748253081703,-5000.0,0.00039148,2]
[362403050,1748253081710,-325.0,0.00039152,30]
[362403051,1748253081718,-325.0,0.00039152,30]
[362403052,1748253081726,-325.0,0.00039152,30]
[362403053,1748253081733,-325.0,0.00039152,30]
[362403054,1748253081741,-325.0,0.00039152,30]
[362403055,1748253081749,-325.0,0.00039152,30]
[362403056,1748253081756,-325.0,0.00039152,30]
[362403057,1748253081762,-325.0,0.00039152,30]
[362403058,1748253081769,-325.0,0.00039152,30]
[362403059,1748253081777,-325.0,0.00039152,30]
[362403060,1748253081784,-325.0,0.00039152,30]
[362403061,1748253081792,-325.0,0.00039152,30]
[362403062,1748253081799,-325.0,0.00039152,30]
[362403063,1748253081806,-325.0,0.00039152,30]
[362403064,1748253081814,-628.0,0.00039157,30]
[362403065,1748253081822,-628.0,0.00039157,30]
[362403066,1748253081830,-628.0,0.00039157,30]
[362403067,1748253081838,-628.0,0.00039157,30]
[362403068,1748253081846,-628.0,0.00039157,30]
[362403069,1748253081853,-628.0,0.00039157,30]
[362403070,1748253081861,-628.0,0.00039157,30]
[362403071,1748253081869,-628.0,0.00039157,30]
[362403072,1748253081876,-628.0,0.00039157,30]
[362403073,1748253081883,-628.0,0.00039157,30]
[362403074,1748253081892,-628.0,0.00039157,30]
[362403075,1748253081901,-628.0,0.00039157,30]
[362403076,1748253081909,-628.0,0.00039157,30]
[362403077,1748253081916,-628.0,0.00039157,30]
[362403078,1748253081923,-500.0,0.0003916,7]
[362403079,1748253081929,-25000.0,0.00039162,2]
[362403080,1748253081944,-25000.0,0.00039166,2]
[362403081,1748253081953,-325.0,0.00039168,30]
[362403082,1748253081961,-325.0,0.00039168,30]
[362403083,1748253081969,-325.0,0.00039168,30]
[362403084,1748253081978,-325.0,0.00039168,30]
[362403085,1748253081984,-325.0,0.00039168,30]
[362403086,1748253081991,-325.0,0.00039168,30]
[362403087,1748253081999,-325.0,0.00039168,30]
[362403088,1748253082006,-325.0,0.00039168,30]
[362403089,1748253082014,-325.0,0.00039168,30]
[362403090,1748253082020,-325.0,0.00039168,30]
[362403091,1748253082028,-325.0,0.00039168,30]
[362403092,1748253082037,-325.0,0.00039168,30]
[362403093,1748253082045,-325.0,0.00039168,30]
[362403094,1748253082056,-325.0,0.00039168,30]
[362403095,1748253082064,-628.0,0.00039172,30]
[362403096,1748253082072,-628.0,0.00039172,30]
[362403097,1748253082079,-628.0,0.00039172,30]
[362403098,1748253082088,-628.0,0.00039172,30]
[362403099,1748253082096,-628.0,0.00039172,30]
[362403100,1748253082104,-628.0,0.00039172,30]
[362403101,1748253082110,-628.0,0.00039172,30]
[362403102,1748253082118,-628.0,0.00039172,30]
[362403103,1748253082127,-628.0,0.00039172,30]
[362403104,1748253082137,-628.0,0.00039172,30]
[362403105,1748253082146,-628.0,0.00039172,30]
[362403106,1748253082154,-628.0,0.00039172,30]
[362403107,1748253082160,-628.0,0.00039172,30]
[362403108,1748253082168,-628.0,0.00039172,30]
[362403109,1748253082179,-5000.0,0.00039174,2]
[362403110,1748253082186,-500.0,0.00039174,7]
[362403111,1748253082195,-150.0,0.00039176,2]
[362403112,1748253082204,-452.35,0.00039177,2]
[362403113,1748253082212,-4976.7,0.00039183,2]
[362403114,1748253082221,-150.0,0.00039183,2]
[362403115,1748253082229,-325.0,0.00039183,30]
[362403116,1748253082238,-325.0,0.00039183,30]
[362403117,1748253082246,-325.0,0.00039183,30]
[362403118,1748253082254,-325.0,0.00039183,30]
[362403119,1748253082262,-325.0,0.00039183,30]
[362403120,1748253082270,-325.0,0.00039183,30]
[362403121,1748253082278,-325.0,0.00039183,30]
[362403122,1748253082287,-325.0,0.00039183,30]
[362403123,1748253082296,-325.0,0.00039183,30]
[362403124,1748253082304,-325.0,0.00039183,30]
[362403125,1748253082313,-325.0,0.00039183,30]
[362403126,1748253082320,-325.0,0.00039183,30]
[362403127,1748253082327,-325.0,0.00039183,30]
[362403128,1748253082335,-325.0,0.00039183,30]
[362403129,1748253082344,-150.0,0.00039187,2]
[362403130,1748253082352,-628.0,0.00039188,30]
[362403131,1748253082359,-628.0,0.00039188,30]
[362403132,1748253082367,-628.0,0.00039188,30]
[362403133,1748253082375,-628.0,0.00039188,30]
[362403134,1748253082384,-628.0,0.00039188,30]
[362403135,1748253082394,-628.0,0.00039188,30]
[362403136,1748253082403,-628.0,0.00039188,30]
[362403137,1748253082411,-628.0,0.00039188,30]
[362403138,1748253082419,-628.0,0.00039188,30]
[362403139,1748253082427,-628.0,0.00039188,30]
[362403140,1748253082435,-628.0,0.00039188,30]
[362403141,1748253082443,-628.0,0.00039188,30]
[362403142,1748253082450,-628.0,0.00039188,30]
[362403143,1748253082458,-628.0,0.00039188,30]
[362403144,1748253082465,-5000.0,0.0003919,2]
[362403145,1748253082474,-5000.0,0.00039194,2]
[362403146,1748253082482,-150.0,0.00039196,2]
[362403147,1748253082489,-157.052618,0.00039198,120]
[362403148,1748253082496,-325.0,0.00039198,30]
[362403149,1748253082504,-325.0,0.00039198,30]
[362403150,1748253082512,-325.0,0.00039198,30]
[362403151,1748253082519,-325.0,0.00039198,30]
[362403152,1748253082527,-325.0,0.00039198,30]
[362403153,1748253082533,-325.0,0.00039198,30]
[362403154,1748253082540,-325.0,0.00039198,30]
[362403155,1748253082549,-325.0,0.00039198,30]
[362403156,1748253082556,-325.0,0.00039198,30]
[362403157,1748253082563,-325.0,0.00039198,30]
[362403158,1748253082571,-325.0,0.00039198,30]
[362403159,1748253082579,-325.0,0.00039198,30]
[362403160,1748253082585,-325.0,0.00039198,30]
[362403161,1748253082592,-325.0,0.00039198,30]
[362403162,1748253082599,-628.0,0.00039203,30]
[362403163,1748253082606,-628.0,0.00039203,30]
[362403164,1748253082613,-628.0,0.00039203,30]
[362403165,1748253082622,-628.0,0.00039203,30]
[362403166,1748253082633,-628.0,0.00039203,30]
[362403167,1748253082783,-628.0,0.00039203,30]
[362403168,1748253082791,-628.0,0.00039203,30]
[362403169,1748253082798,-628.0,0.00039203,30]
[362403170,1748253082805,-628.0,0.00039203,30]
[362403171,1748253082812,-628.0,0.00039203,30]
[362403172,1748253082818,-628.0,0.00039203,30]
[362403173,1748253082825,-628.0,0.00039203,30]
[362403174,1748253082832,-628.0,0.00039203,30]
[362403175,1748253082839,-628.0,0.00039203,30]
[362403176,1748253082846,-5000.0,0.00039209,2]
[362403177,1748253082854,-5000.0,0.00039218,2]
[362403178,1748253082862,-1000.0,0.00039238,7]
[362403179,1748253082872,-1000.0,0.00039249,7]
[362403180,1748253082879,-838.61,0.00039251,2]
[362403181,1748253082888,-150.0,0.00039271,2]
[362403182,1748253082894,-475.47033,0.00039288,30]
[362403183,1748253082901,-800.0,0.00039298,2]
[362403184,1748253082908,-5000.0,0.00039299,2]
[362403185,1748253082914,-5000.0,0.00039309,2]
[362403186,1748253082920,-25000.0,0.00039341,2]
[362403187,1748253082928,-500.0,0.00039354,7]
[362403188,1748253082935,-500.0,0.00039373,7]
[362403189,1748253082942,-5000.0,0.00039375,2]
[362403190,1748253082949,-4139.1,0.00039376,2]
[362403191,1748253082956,-500.0,0.00039379,7]
[362403192,1748253082964,-150.0,0.00039381,2]
[362403193,1748253082970,-5000.0,0.00039399,2]
[362403194,1748253082977,-339.86504,0.000394,120]
[362403195,1748253082984,-7900.0,0.00039427,7]
[362403196,1748253082991,-5000.0,0.00039436,2]
[362403197,1748253082997,-150.0,0.00039442,2]
[362403198,1748253083004,-150.0,0.00039443,2]
[362403199,1748253083011,-5000.0,0.00039487,2]
[362403200,1748253083017,-5000.0,0.00039487,2]
[362403201,1748253083024,-1000.0,0.00039487,7]
[362403202,1748253083031,-475.47033,0.00039488,30]
[362403203,1748253083040,-150.0,0.00039491,2]
[362403204,1748253083053,-350.0,0.000395,2]
[362403205,1748253083061,-1000.0,0.000395,5]
[362403206,1748253083068,-160.0,0.000395,30]
[362403207,1748253083076,-160.0,0.000395,30]
[362403208,1748253083087,-1680.36911239,0.000395,30]
[362403209,1748253083095,-1241.38344548,0.000395,30]
[362403210,1748253083103,-2068.28170397,0.000395,33]
[362403211,1748253083110,-2500.0,0.00039517,2]
[362403212,1748253083119,-150.0,0.00039525,2]
[362403213,1748253083129,-4980.9,0.00039535,2]
[362403214,1748253083138,-1800.0,0.00039538,7]
[362403215,1748253083146,-645.99,0.0003957,2]
[362403216,1748253083152,-25000.0,0.00039574,2]
[362403217,1748253083161,-150.0,0.00039576,2]
[362403218,1748253083169,-25000.0,0.00039577,2]
[362403219,1748253083176,-150.0,0.00039577,2]
[362403220,1748253083184,-827.0,0.00039587,2]
[362403221,1748253083192,-5000.0,0.00039598,2]
[362403222,1748253083200,-4871.19,0.00039608,2]
[362403223,1748253083207,-7900.0,0.00039621,7]
[362403224,1748253083217,-150.0,0.00039626,2]
[362403225,1748253083224,-195.14,0.00039654,2]
[362403226,1748253083232,-500.0,0.00039654,7]
[362403227,1748253083240,-150.0,0.00039654,2]
[362403228,1748253083247,-305.6131158,0.0003968,7]
[362403229,1748253083255,-5000.0,0.00039683,2]
[362403230,1748253083263,-475.47033,0.00039688,30]
[362403231,1748253083270,-150.0,0.00039688,2]
[362403232,1748253083278,-2000.0,0.000397,2]
[362403233,1748253083286,-5000.0,0.00039708,2]
[362403234,1748253083293,-1818.135,0.00039726,7]
[362403235,1748253083300,-806.25,0.00039726,2]
[362403236,1748253083310,-1609.3,0.00039726,2]
[362403237,1748253083317,-806.25,0.00039726,2]
[362403238,1748253083326,-1612.5,0.00039726,2]
[362403239,1748253083335,-150.0,0.0003973,2]
[362403240,1748253083343,-5000.0,0.00039731,2]
[362403241,1748253083350,-4090.03,0.00039732,2]
[362403242,1748253083359,-150.0,0.00039751,2]
[362403243,1748253083366,-5000.0,0.00039758,2]
[362403244,1748253083374,-500.0,0.00039759,7]
[362403245,1748253083382,-1696.03,0.0003976,2]
[362403246,1748253083391,-150.0,0.00039766,2]
[362403247,1748253083398,-5000.0,0.00039771,2]
[362403248,1748253083406,-1000.0,0.00039782,7]
[362403249,1748253083413,-1000.0,0.00039793,7]
[362403250,1748253083421,-25000.0,0.00039797,2]
[362403251,1748253083429,-1626.16,0.00039797,2]
[362403252,1748253083437,-5000.0,0.000398,2]
[362403253,1748253083444,-1101.2632002,0.000398,10]
[362403254,1748253083452,-1146.58754235,0.000398,120]
[362403255,1748253083460,-1000.0,0.00039807,7]
[362403256,1748253083467,-500.0,0.00039815,7]
[362403257,1748253083474,-5000.0,0.00039816,2]
[362403258,1748253083482,-25000.0,0.00039825,2]
[362403259,1748253083489,-5000.0,0.00039831,2]
[362403260,1748253083495,-500.0,0.00039831,7]
[362403261,1748253083502,-542.39,0.00039847,2]
[362403262,1748253083510,-475.47033,0.00039888,30]
[362403263,1748253083517,-1757.84,0.0003989,2]
[362403264,1748253083525,-2000.0,0.0003989,42]
[362403265,1748253083532,-158.32373336,0.0003989,2]
[362403266,1748253083538,-25000.0,0.00039891,2]
[362403267,1748253083545,-82634.71796963,0.000399,120]
[362403268,1748253083552,-5000.0,0.00039903,2]
[362403269,1748253083559,-5000.0,0.00039904,2]
[362403270,1748253083566,-5000.0,0.00039905,2]
[362403271,1748253083573,-5000.0,0.00039905,2]
[362403272,1748253083580,-1800.0,0.00039912,7]